bitfinex/quotes_SOLUSD_20251127
["timestamp","ask_amount","ask_price","bid_price","bid_amount"]
[1764205512560,0.65,143.53,143.5,5.10106292]
[1764205513058,0.65,143.57,143.52,6.97485357]
[1764205513272,0.65,143.57,143.53,12.07495959]
[1764205513571,0.65,143.57,143.53,3.2]
[1764205513958,7.62485357,143.57,143.53,3.2]
[1764205514158,15.78479849,143.54,143.46,7.62058413]
[1764205514375,6.97485357,143.54,143.47,15.27728725]
[1764205514583,7.62485357,143.53,143.48,5.10243368]
[1764205514805,7.62485357,143.53,143.47,3.2]
[1764205514806,6.97485357,143.51,143.47,3.2]
[1764205515292,0.65,143.5,143.47,3.2]
[1764205516786,7.61870062,143.5,143.47,3.2]
[1764205516981,0.65,143.5,143.47,3.2]
[1764205517201,0.65,143.49,143.47,3.2]
[1764205517763,0.65,143.52,143.47,3.2]
[1764205517967,6.97485357,143.5,143.47,3.2]
[1764205518480,0.65,143.49,143.47,3.2]
[1764205518864,8.80994492,143.47,143.4,6.97485357]
[1764205519064,7.62485357,143.46,143.41,3.2]
[1764205519267,0.65,143.46,143.41,10.17485357]
[1764205519466,0.65,143.48,143.42,22.06268545]
[1764205519685,0.65,143.48,143.42,23.93371757]
[1764205520000,7.62485357,143.51,143.44,6.97485357]
[1764205520285,14.59261215,143.52,143.45,10.82485357]
[1764205520490,0.65,143.51,143.45,10.82485357]
[1764205520863,7.62485357,143.51,143.43,25.05214738]
[1764205521062,7.62485357,143.51,143.44,15.2729339]
[1764205521365,7.62485357,143.51,143.44,3.2]
[1764205521366,6.97485357,143.49,143.44,3.2]
[1764205521574,6.97485357,143.48,143.44,3.2]
[1764205521773,6.97485357,143.46,143.41,3.2]
[1764205521973,13.9461728,143.45,143.39,3.2]
[1764205522175,13.9461728,143.45,143.39,19.508864]
[1764205522360,14.5961728,143.45,143.39,20.158864]
[1764205522559,7.62485357,143.45,143.39,20.158864]
[1764205522879,0.65,143.45,143.4,16.308864]
[1764205523078,7.62485357,143.45,143.4,16.308864]
[1764205523290,0.65,143.45,143.4,16.308864]
[1764205523507,0.65,143.44,143.4,16.308864]
[1764205524500,0.65,143.44,143.39,10.82391144]
[1764205524501,0.65,143.44,143.39,3.2]
[1764205524681,7.62157111,143.44,143.39,3.2]
[1764205524883,14.59642468,143.44,143.38,6.97416247]
[1764205525075,0.65,143.43,143.38,10.17416247]
[1764205525271,8.80994492,143.46,143.38,26.4831035]
[1764205525272,33.20860725,143.46,143.38,26.4831035]
[1764205525509,0.65,143.45,143.39,7.62485357]
[1764205525704,7.62485357,143.45,143.38,33.45795707]
[1764205526002,0.65,143.45,143.4,6.97485357]
[1764205526403,0.65,143.45,143.4,7.62485357]
[1764205526584,0.65,143.45,143.4,0.65]
[1764205526982,0.65,143.45,143.4,7.62485357]
[1764205527394,7.62115359,143.45,143.39,14.59882538]
[1764205527580,7.62115359,143.45,143.37,3.4]
[1764205527581,6.97485357,143.43,143.37,3.4]
[1764205527791,7.62115359,143.45,143.37,3.4]
[1764205527792,6.97485357,143.42,143.37,3.4]
[1764205527986,13.94770816,143.42,143.37,3.4]
[1764205528205,7.62485357,143.41,143.37,3.4]
[1764205528505,6.97485357,143.39,143.37,0.2]
[1764205528695,6.97485357,143.39,143.34,0.2]
[1764205528696,8.80994492,143.37,143.34,0.2]
[1764205528897,6.97485357,143.35,143.34,0.2]
[1764205529201,7.62485357,143.36,143.34,0.2]
[1764205529397,6.97485357,143.35,143.34,0.2]
[1764205529582,7.62485357,143.35,143.34,0.2]
[1764205530282,22.75990422,143.37,143.34,0.2]
[1764205530485,7.62485357,143.36,143.34,0.2]
[1764205531299,6.97485357,143.36,143.34,0.2]
[1764205531483,7.62486393,143.38,143.34,0.2]
[1764205531693,14.5997175,143.38,143.34,0.2]
[1764205531895,0.65,143.37,143.34,0.2]
[1764205532781,14.59985249,143.37,143.34,0.2]
[1764205533091,0.65,143.37,143.34,0.2]
[1764205533418,0.65,143.36,143.34,0.2]
[1764205534883,7.62549806,143.36,143.34,0.2]
[1764205535801,18.48208705,143.36,143.34,0.2]
[1764205536002,7.62549806,143.36,143.34,0.2]
[1764205536311,0.65,143.41,143.35,10.85658899]
[1764205536609,0.65,143.41,143.35,17.83222267]
[1764205536905,17.71463656,143.43,143.35,17.83222267]
[1764205536906,7.62208768,143.43,143.37,10.85658899]
[1764205537206,18.47867667,143.43,143.36,11.50658899]
[1764205537400,0.65,143.42,143.36,11.50658899]
[1764205537703,0.65,143.42,143.37,0.65]
[1764205538277,7.62262928,143.42,143.37,7.62492277]
[1764205538675,7.62262928,143.42,143.38,0.65]
[1764205538877,7.62262928,143.42,143.37,0.65]
[1764205539699,0.65,143.42,143.37,0.65]
[1764205539889,10.85658899,143.43,143.37,11.50658899]
[1764205540094,11.53658899,143.43,143.37,11.50658899]
[1764205540586,18.50903841,143.43,143.37,11.50658899]
[1764205540983,10.85658899,143.44,143.38,11.51658899]
[1764205541205,34.13678752,143.45,143.39,0.66]
[1764205541406,7.65133453,143.45,143.39,11.51658899]
[1764205541582,18.50792352,143.45,143.39,11.51658899]
[1764205541781,0.68,143.44,143.39,0.66]
[1764205542312,18.50701745,143.47,143.41,10.85658899]
[1764205542482,18.50701745,143.47,143.38,19.488864]
[1764205542483,0.68,143.47,143.43,6.97204211]
[1764205542684,7.65013007,143.47,143.42,7.6324325]
[1764205542882,47.39165424,143.49,143.43,11.51658899]
[1764205542883,32.16540066,143.49,143.43,11.51658899]
[1764205543086,31.48540066,143.49,143.43,0.66]
[1764205543291,11.53658899,143.48,143.43,0.66]
[1764205543478,11.53658899,143.48,143.42,21.00902149]
[1764205543479,10.85658899,143.47,143.42,3.18]
[1764205543697,11.53658899,143.47,143.42,3.18]
[1764205544002,11.53658899,143.47,143.42,3.84]
[1764205544178,20.62881167,143.49,143.43,11.51658899]
[1764205544385,36.83081045,143.56,143.45,10.85658899]
[1764205544386,18.5043632,143.52,143.45,10.85658899]
[1764205544579,11.53658899,143.52,143.46,10.85658899]
[1764205544779,8.80994492,143.53,143.48,10.85658899]
[1764205545008,0.68,143.54,143.49,10.85658899]
[1764205545178,10.85658899,143.53,143.47,11.51658899]
[1764205545385,11.53658899,143.53,143.47,11.51658899]
[1764205545682,10.85658899,143.49,143.43,0.66]
[1764205545894,10.85658899,143.48,143.43,3.18]
[1764205546102,10.85658899,143.49,143.43,3.18]
[1764205546302,11.53658899,143.49,143.43,3.18]
[1764205546703,6.96961248,143.48,143.43,3.18]
[1764205546921,6.96961248,143.48,143.43,10.8119897]
[1764205547098,7.64961248,143.48,143.43,10.8119897]
[1764205547295,0.68,143.48,143.44,0.66]
[1764205547698,6.96869444,143.5,143.45,10.85658899]
[1764205548025,6.96771709,143.52,143.47,10.85658899]
[1764205548318,16.45717841,143.53,143.47,10.85658899]
[1764205548520,27.3137674,143.53,143.47,0.66]
[1764205548719,16.308864,143.54,143.48,11.51658899]
[1764205548923,0.68,143.56,143.5,10.85658899]
[1764205549220,10.85658899,143.54,143.48,16.308864]
[1764205549521,10.85658899,143.54,143.48,16.968864]
[1764205549743,11.53658899,143.54,143.48,16.968864]
[1764205550411,7.64713324,143.54,143.48,23.93825119]
[1764205550613,18.50372223,143.54,143.48,34.79484018]
[1764205550993,18.50372223,143.54,143.48,27.82545299]
[1764205551908,0.68,143.54,143.49,0.66]
[1764205552101,11.53658899,143.54,143.49,0.66]
[1764205552426,18.5032927,143.54,143.49,0.66]
[1764205552623,7.64670371,143.54,143.49,0.66]
[1764205552824,18.5032927,143.54,143.49,7.62910465]
[1764205552995,0.68,143.53,143.48,16.308864]
[1764205553533,15.77627958,143.55,143.49,11.51658899]
[1764205553701,16.308864,143.57,143.52,10.85658899]
[1764205553904,0.68,143.57,143.52,10.85658899]
[1764205554103,19.66653391,143.55,143.51,3.18]
[1764205554302,19.66653391,143.55,143.48,34.79500529]
[1764205554303,19.66653391,143.55,143.49,0.66]
[1764205554503,20.34653391,143.55,143.49,3.84]
[1764205554734,0.68,143.55,143.5,10.85658899]
[1764205554915,0.68,143.55,143.5,11.51658899]
[1764205554916,7.64624997,143.55,143.5,11.51658899]
[1764205555121,7.64624997,143.55,143.51,0.66]
[1764205555307,0.68,143.55,143.51,0.66]
[1764205555507,18.50186272,143.57,143.51,0.66]
[1764205555715,7.64527373,143.57,143.51,11.51658899]
[1764205556628,7.64527373,143.57,143.51,18.48428068]
[1764205557002,0.68,143.57,143.52,0.66]
[1764205557623,11.14091213,143.6,143.53,14.03658899]
[1764205557827,0.68,143.61,143.54,10.85658899]
[1764205558029,36.79964693,143.68,143.57,10.85658899]
[1764205558030,11.53658899,143.63,143.57,10.85658899]
[1764205558241,0.68,143.65,143.59,10.85658899]
[1764205558404,21.67698434,143.67,143.6,10.85658899]
[1764205558600,0.68,143.66,143.6,18.47998533]
[1764205558804,0.68,143.66,143.61,11.51658899]
[1764205559322,18.49658467,143.68,143.62,0.66]
[1764205559501,11.53658899,143.67,143.62,0.66]
[1764205559698,0.68,143.67,143.62,0.66]
[1764205560014,0.68,143.66,143.62,0.66]
[1764205560209,15.7699406,143.68,143.62,0.66]
[1764205560210,0.68,143.68,143.62,11.51658899]
[1764205560409,17.81609839,143.69,143.63,14.03658899]
[1764205560610,18.49609839,143.69,143.63,3.18]
[1764205560934,18.49609839,143.69,143.63,3.84]
[1764205561126,10.85658899,143.65,143.6,16.308864]
[1764205561334,9.48994492,143.68,143.61,0.66]
[1764205561624,20.34653391,143.68,143.61,11.51658899]
[1764205561927,20.34653391,143.68,143.5,10.85658899]
[1764205561928,10.85658899,143.64,143.58,0.66]
[1764205562127,10.85658899,143.63,143.58,3.82]
[1764205562639,10.85658899,143.63,143.51,0.66]
[1764205562640,6.96475832,143.58,143.51,0.66]
[1764205562934,10.85658899,143.57,143.52,0.66]
[1764205563106,10.85658899,143.56,143.52,16.968864]
[1764205563305,10.85658899,143.56,143.53,0.66]
[1764205563513,16.73849263,143.6,143.53,0.66]
[1764205563805,10.85658899,143.54,143.5,3.16]
[1764205564234,10.85658899,143.55,143.51,0.66]
[1764205564436,10.85658899,143.54,143.51,0.66]
[1764205564634,10.85658899,143.56,143.52,6.96767001]
[1764205564815,0.68,143.58,143.52,6.96767001]
[1764205564816,9.48994492,143.58,143.52,6.96767001]
[1764205565136,10.85658899,143.53,143.5,3.16]
[1764205565443,19.468864,143.59,143.51,0.66]
[1764205565626,8.80994492,143.58,143.52,10.85658899]
[1764205565812,19.66653391,143.58,143.53,0.66]
[1764205566012,16.988864,143.59,143.53,0.66]
[1764205566013,27.16545299,143.59,143.53,0.66]
[1764205566613,6.96572861,143.56,143.53,0.66]
[1764205566814,17.8223176,143.56,143.5,16.968864]
[1764205567013,11.53658899,143.57,143.51,0.66]
[1764205567533,19.2190816,143.58,143.51,0.66]
[1764205567534,23.93315765,143.59,143.52,10.85658899]
[1764205567731,26.63034426,143.6,143.53,14.67658899]
[1764205567929,10.85658899,143.59,143.53,3.82]
[1764205568442,10.85658899,143.58,143.53,3.82]
[1764205568855,11.51658899,143.62,143.55,10.85658899]
[1764205569044,10.85658899,143.6,143.54,0.66]
[1764205569224,10.85658899,143.58,143.54,0.66]
[1764205569430,10.85658899,143.58,143.53,3.16]
[1764205569633,11.51658899,143.58,143.53,10.7871726]
[1764205569819,11.51658899,143.58,143.53,3.82]
[1764205570143,11.51658899,143.58,143.51,16.968864]
[1764205570144,10.85658899,143.56,143.51,16.968864]
[1764205570455,10.85658899,143.56,143.51,20.128864]
[1764205570633,10.85658899,143.59,143.52,11.51658899]
[1764205570818,17.82100282,143.59,143.53,6.96718456]
[1764205571156,10.85658899,143.59,143.53,7.62718456]
[1764205571328,27.3004483,143.6,143.54,0.66]
[1764205571746,19.66653391,143.6,143.54,0.66]
[1764205571930,34.12880227,143.61,143.54,11.51658899]
[1764205572132,34.79880227,143.61,143.54,0.66]
[1764205572341,23.94221328,143.61,143.55,0.66]
[1764205572541,16.978864,143.61,143.55,11.51658899]
[1764205572852,23.27218436,143.61,143.56,17.8223176]
[1764205573022,23.27218436,143.61,143.56,0.66]
[1764205573222,23.27218436,143.61,143.57,0.66]
[1764205573424,23.94218436,143.61,143.55,21.64279941]
[1764205573624,23.94218436,143.61,143.55,20.98279941]
[1764205573933,23.94218436,143.61,143.56,0.66]
[1764205574427,16.978864,143.61,143.56,7.62550004]
[1764205574821,7.63333556,143.61,143.57,0.66]
[1764205575227,34.12828401,143.62,143.57,0.66]
[1764205575424,18.48942001,143.62,143.57,0.66]
[1764205575634,0.67,143.61,143.55,10.12620875]
[1764205575826,0.67,143.61,143.55,21.64279774]
[1764205576150,0.67,143.61,143.56,0.66]
[1764205576452,7.63371394,143.61,143.56,0.66]
[1764205576945,17.82030293,143.61,143.56,0.66]
[1764205577148,0.67,143.6,143.55,3.16]
[1764205577330,11.52658899,143.6,143.55,3.16]
[1764205577651,6.96371394,143.61,143.56,0.66]
[1764205577946,102.2,143.63,143.58,10.85658899]
[1764205578331,102.2,143.63,143.59,0.66]
[1764205578530,102.2,143.63,143.59,10.78405569]
[1764205578731,102.2,143.63,143.59,21.64064468]
[1764205578946,102.2,143.63,143.6,0.66]
[1764205579246,7.63137144,143.65,143.6,0.66]
[1764205579443,6.96137144,143.65,143.6,0.66]
[1764205579646,15.77083117,143.66,143.6,11.51658899]
[1764205580045,15.77083117,143.66,143.61,0.66]
[1764205580430,16.44083117,143.66,143.61,0.66]
[1764205580625,37.73724523,143.68,143.61,18.47950111]
[1764205580825,0.67,143.68,143.62,10.85658899]
[1764205581061,0.67,143.68,143.63,0.66]
[1764205581227,20.97605957,143.69,143.63,3.82]
[1764205581647,17.81605957,143.69,143.64,0.66]
[1764205582026,18.48605957,143.69,143.64,0.66]
[1764205582229,0.67,143.68,143.63,3.16]
[1764205582440,0.67,143.68,143.63,3.82]
[1764205582640,0.67,143.68,143.64,0.66]
[1764205582641,7.63010567,143.68,143.64,0.66]
[1764205583428,10.85658899,143.66,143.6,0.66]
[1764205583647,10.85658899,143.66,143.6,3.82]
[1764205583834,11.52658899,143.66,143.6,10.78362572]
[1764205584039,10.85658899,143.67,143.61,0.66]
[1764205584236,11.52658899,143.67,143.61,0.66]
[1764205584551,18.4871548,143.67,143.61,7.6229102]
[1764205584763,10.85658899,143.66,143.61,0.66]
[1764205585231,11.52658899,143.65,143.59,3.16]
[1764205585431,10.85658899,143.64,143.59,3.82]
[1764205585954,11.52658899,143.63,143.59,3.16]
[1764205586428,11.52658899,143.63,143.59,3.82]
[1764205586633,16.308864,143.65,143.59,3.16]
[1764205586634,18.48940753,143.62,143.59,3.16]
[1764205586933,10.85658899,143.6,143.56,3.16]
[1764205587337,17.81940753,143.62,143.57,0.66]
[1764205587732,11.52658899,143.61,143.56,3.16]
[1764205588039,11.52658899,143.61,143.56,3.82]
[1764205588243,11.52658899,143.61,143.57,0.66]
[1764205588442,0.67,143.61,143.57,0.66]
[1764205588644,6.96330388,143.61,143.57,0.66]
[1764205588851,7.63330388,143.61,143.57,0.66]
[1764205589042,0.67,143.61,143.57,0.66]
[1764205589354,11.52658899,143.61,143.57,0.66]
[1764205589958,8.80994492,143.63,143.57,7.62522286]
[1764205589959,6.96242474,143.63,143.57,7.62522286]
[1764205590131,10.85658899,143.63,143.57,7.62522286]
[1764205590331,11.52658899,143.63,143.58,0.66]
[1764205590554,10.85658899,143.62,143.58,0.66]
[1764205590753,17.81887715,143.64,143.58,7.62448932]
[1764205590955,18.48887715,143.64,143.58,7.62448932]
[1764205591158,0.67,143.63,143.58,7.62448932]
[1764205591464,11.52658899,143.63,143.58,7.62448932]
[1764205591838,18.48903903,143.63,143.58,7.62448932]
[1764205592043,11.52658899,143.63,143.58,7.62448932]
[1764205592244,0.67,143.63,143.58,0.66]
[1764205592466,0.67,143.62,143.58,7.62475741]
[1764205592667,10.85658899,143.6,143.56,3.16]
[1764205593179,11.52658899,143.6,143.56,3.16]
[1764205593549,0.67,143.59,143.56,3.16]
[1764205594176,11.52658899,143.59,143.56,3.16]
[1764205594547,7.6632966,143.59,143.56,3.16]
[1764205594747,6.9932966,143.57,143.51,0.66]
[1764205595052,6.9932966,143.55,143.51,3.8]
[1764205595254,6.9932966,143.56,143.52,16.308864]
[1764205595464,3.14,143.59,143.53,0.66]
[1764205595666,16.47324152,143.59,143.53,0.66]
[1764205595854,13.95833239,143.58,143.53,0.66]
[1764205596060,6.9932966,143.57,143.53,0.66]
[1764205596379,7.6632966,143.57,143.53,0.66]
[1764205596583,6.9932966,143.58,143.53,7.62704958]
[1764205596870,16.47324152,143.61,143.54,6.9932966]
[1764205597078,13.95710896,143.6,143.53,25.04501098]
[1764205597269,6.9932966,143.59,143.54,0.66]
[1764205597771,7.6632966,143.59,143.54,0.66]
[1764205598086,7.6632966,143.59,143.54,7.62632398]
[1764205598564,14.62764014,143.59,143.55,0.66]
[1764205599175,7.6632966,143.58,143.53,7.62710309]
[1764205599947,14.66845202,143.58,143.53,7.62710309]
[1764205600351,14.66845202,143.58,143.53,6.96710309]
[1764205600550,14.66845202,143.58,143.54,0.71]
[1764205601779,109.16429635,143.59,143.54,0.71]
[1764205601966,109.16429635,143.59,143.54,7.67631567]
[1764205602167,109.87429635,143.59,143.54,7.67631567]
[1764205602366,116.86759295,143.59,143.54,7.67631567]
[1764205604158,116.86759295,143.59,143.52,40.7204901]
[1764205604159,6.9932966,143.57,143.52,16.308864]
[1764205604478,6.9932966,143.57,143.52,17.018864]
[1764205604660,0.71,143.56,143.52,17.018864]
[1764205604861,7.7032966,143.57,143.52,17.018864]
[1764205605477,7.7032966,143.56,143.52,17.018864]
[1764205605984,6.9932966,143.57,143.52,17.018864]
[1764205606284,13.95881953,143.57,143.52,23.98630753]
[1764205606467,14.66881953,143.57,143.52,23.98630753]
[1764205606880,7.7032966,143.56,143.52,7.67744353]
[1764205607779,7.7032966,143.56,143.51,3.85]
[1764205608084,7.7032966,143.56,143.52,0.71]
[1764205608284,14.66916585,143.56,143.52,0.71]
[1764205608455,7.7032966,143.56,143.52,0.71]
[1764205608661,7.67575632,143.56,143.52,0.71]
[1764205609066,14.66913297,143.56,143.52,0.71]
[1764205609266,7.7032966,143.56,143.52,0.71]
[1764205609464,7.7032966,143.55,143.51,3.14]
[1764205609673,7.7032966,143.55,143.51,26.41695657]
[1764205609856,6.96574635,143.56,143.51,26.41695657]
[1764205609857,116.86863076,143.57,143.52,0.71]
[1764205610257,116.86863076,143.57,143.52,7.67758818]
[1764205610883,0.71,143.56,143.52,7.67758818]
[1764205611379,14.66917711,143.56,143.52,7.67758818]
[1764205611684,14.66917711,143.56,143.52,0.71]
[1764205613462,14.66917711,143.56,143.52,7.67765047]
[1764205613868,109.16531558,143.57,143.53,0.71]
[1764205614062,116.86861218,143.57,143.53,0.71]
[1764205614277,109.1932966,143.57,143.52,6.96765047]
[1764205614591,109.9032966,143.57,143.53,0.71]
[1764205614886,116.86859816,143.57,143.53,0.71]
[1764205615087,34.8118388,143.63,143.54,3.14]
[1764205615088,17.09659999,143.61,143.54,3.14]
[1764205615265,17.80659999,143.61,143.54,3.14]
[1764205615589,6.9932966,143.58,143.54,3.85]
[1764205616190,7.7032966,143.57,143.54,3.14]
[1764205617162,7.7032966,143.56,143.54,3.14]
[1764205617663,7.7032966,143.56,143.52,0.71]
[1764205617882,7.7032966,143.56,143.52,7.67758521]
[1764205618268,17.69475321,143.6,143.53,0.71]
[1764205618269,0.71,143.6,143.53,0.71]
[1764205618469,7.7032966,143.6,143.54,3.14]
[1764205618776,6.9932966,143.59,143.54,3.14]
[1764205618976,7.7032966,143.59,143.54,3.85]
[1764205619173,14.66659999,143.61,143.55,0.71]
[1764205619567,23.47600135,143.63,143.55,7.7032966]
[1764205619769,13.95522701,143.64,143.57,6.9932966]
[1764205619965,7.7032966,143.65,143.59,6.96427327]
[1764205620587,0.71,143.67,143.61,6.9932966]
[1764205620771,7.67039609,143.67,143.62,19.448864]
[1764205620975,7.67039609,143.67,143.62,20.158864]
[1764205621199,7.67039609,143.67,143.63,0.71]
[1764205621399,6.9932966,143.71,143.65,6.9932966]
[1764205621565,13.9517546,143.71,143.64,6.9932966]
[1764205621764,6.9932966,143.68,143.63,0.71]
[1764205621971,6.9932966,143.69,143.63,7.67216212]
[1764205622378,7.7032966,143.69,143.63,7.67216212]
[1764205623285,6.9932966,143.68,143.62,33.40492124]
[1764205623495,6.9932966,143.65,143.61,3.14]
[1764205623791,8.80994492,143.66,143.61,3.14]
[1764205623969,6.9932966,143.63,143.61,3.14]
[1764205624586,7.7032966,143.63,143.57,6.96514206]
[1764205624810,6.9932966,143.59,143.55,0.71]
[1764205624970,6.9932966,143.59,143.56,3.14]
[1764205625386,6.9932966,143.61,143.57,0.71]
[1764205625597,6.9932966,143.59,143.56,3.14]
[1764205625778,6.9932966,143.57,143.53,0.71]
[1764205626179,7.7032966,143.58,143.53,7.67692656]
[1764205626380,7.7032966,143.58,143.53,0.71]
[1764205626600,6.9932966,143.57,143.53,7.67717812]
[1764205626796,0.71,143.57,143.52,3.14]
[1764205627006,6.9932966,143.58,143.54,0.71]
[1764205627307,6.9932966,143.59,143.54,0.71]
[1764205627685,6.9932966,143.59,143.54,7.67662989]
[1764205627882,14.63744267,143.6,143.55,0.68]
[1764205628283,7.6732966,143.59,143.54,6.96662989]
[1764205628499,7.6732966,143.59,143.54,7.64662989]
[1764205628674,6.9932966,143.59,143.54,7.64662989]
[1764205628880,7.6732966,143.58,143.52,28.20553374]
[1764205629214,7.6732966,143.58,143.52,3.14]
[1764205629215,6.9932966,143.55,143.52,3.14]
[1764205629700,13.95902521,143.56,143.52,3.14]
[1764205629904,14.65902521,143.56,143.52,3.14]
[1764205631378,22.76861044,143.57,143.52,10.80765772]
[1764205631593,0.7,143.56,143.52,10.80765772]
[1764205631793,0.7,143.56,143.52,3.84]
[1764205633215,7.6932966,143.56,143.52,3.14]
[1764205633376,14.6593793,143.56,143.52,3.84]
[1764205633780,7.6660827,143.56,143.52,3.84]
[1764205634079,15.80324152,143.54,143.48,0.7]
[1764205634280,6.9932966,143.53,143.48,3.84]
[1764205634480,7.6932966,143.53,143.48,3.14]
[1764205634782,8.80994492,143.54,143.48,3.14]
[1764205634783,7.6932966,143.52,143.48,3.14]
[1764205635214,0.7,143.52,143.48,3.84]
[1764205635512,33.72318553,143.56,143.48,3.14]
[1764205635721,8.80994492,143.54,143.49,0.7]
[1764205636004,6.96621386,143.55,143.49,7.6932966]
[1764205636210,27.1147109,143.56,143.5,6.9932966]
[1764205636409,33.4080075,143.56,143.5,0.7]
[1764205636720,34.1080075,143.56,143.5,0.7]
[1764205637680,7.6932966,143.55,143.48,3.84]
[1764205637886,8.80994492,143.54,143.46,20.148864]
[1764205638111,6.9932966,143.52,143.46,20.148864]
[1764205638412,6.9932966,143.51,143.46,3.84]
[1764205638705,6.9932966,143.49,143.44,0.7]
[1764205638906,6.9932966,143.49,143.44,3.84]
[1764205639106,0.7,143.49,143.44,3.84]
[1764205639407,0.7,143.49,143.45,0.7]
[1764205639591,7.66936018,143.49,143.45,0.7]
[1764205640502,0.7,143.49,143.45,0.7]
[1764205640903,0.7,143.48,143.44,3.14]
[1764205641111,7.6932966,143.48,143.44,3.14]
[1764205641291,0.7,143.48,143.44,3.14]
[1764205641497,6.9932966,143.49,143.44,3.84]
[1764205641700,7.6932966,143.49,143.44,10.81153031]
[1764205641905,13.96259307,143.49,143.44,3.84]
[1764205642208,0.7,143.48,143.44,3.84]
[1764205642407,7.6932966,143.48,143.44,3.14]
[1764205642601,13.96259307,143.49,143.45,0.7]
[1764205642998,14.66259307,143.49,143.45,0.7]
[1764205643200,0.7,143.48,143.44,3.14]
[1764205643402,0.7,143.48,143.44,3.84]
[1764205643598,0.7,143.48,143.39,0.7]
[1764205643599,13.96388073,143.46,143.39,0.7]
[1764205643915,13.96388073,143.46,143.38,10.1332966]
[1764205644108,6.97058413,143.46,143.4,0.7]
[1764205644320,6.97058413,143.46,143.4,7.6932966]
[1764205644542,8.80994492,143.45,143.4,0.7]
[1764205644696,16.50324152,143.45,143.38,10.81440556]
[1764205645023,16.50324152,143.45,143.39,0.7]
[1764205645394,0.7,143.45,143.39,7.6932966]
[1764205645593,6.97058413,143.46,143.41,13.96631103]
[1764205645796,6.97058413,143.46,143.41,6.97301443]
[1764205646098,130.45747027,143.48,143.41,6.97301443]
[1764205646099,106.04,143.48,143.42,0.7]
[1764205646413,106.04,143.48,143.42,10.8332966]
[1764205646616,113.0332966,143.48,143.42,3.84]
[1764205647409,120.00302958,143.48,143.42,10.8124812]
[1764205647597,6.9932966,143.47,143.42,3.84]
[1764205647798,7.6932966,143.47,143.42,3.84]
[1764205648101,8.80994492,143.45,143.42,3.14]
[1764205648301,6.9932966,143.44,143.42,3.14]
[1764205648517,6.9932966,143.44,143.38,7.67434394]
[1764205648518,7.6932966,143.44,143.39,3.14]
[1764205648910,7.6932966,143.44,143.39,3.84]
[1764205649106,7.6932966,143.44,143.4,0.7]
[1764205649309,15.80324152,143.45,143.4,0.7]
[1764205649511,6.97155605,143.44,143.4,0.7]
[1764205650224,0.7,143.45,143.4,7.67331258]
[1764205650719,10.1332966,143.46,143.41,0.7]
[1764205650720,3.14,143.46,143.41,0.7]
[1764205650920,16.50324152,143.47,143.41,0.7]
[1764205651303,15.80324152,143.47,143.41,0.7]
[1764205651524,7.67073853,143.46,143.41,7.67289729]
[1764205651718,14.66403513,143.46,143.41,7.67289729]
[1764205651920,14.66403513,143.46,143.41,0.7]
[1764205652100,13.96403513,143.46,143.41,0.7]
[1764205652297,7.6932966,143.45,143.41,0.7]
[1764205652624,0.7,143.45,143.41,0.7]
[1764205653633,7.67134513,143.45,143.41,0.7]
[1764205654525,7.6932966,143.44,143.39,3.14]
[1764205654908,6.9932966,143.44,143.39,10.81391058]
[1764205655121,0.7,143.44,143.4,0.7]
[1764205656231,7.6717377,143.44,143.4,0.7]
[1764205656431,116.86435582,143.46,143.41,0.7]
[1764205656731,127.29832179,143.46,143.41,0.7]
[1764205656899,0.7,143.45,143.41,0.7]
[1764205657818,7.6714407,143.45,143.41,0.7]
[1764205658822,7.67127063,143.45,143.41,0.7]
[1764205659036,18.51318018,143.45,143.41,0.7]
[1764205660730,120.01265322,143.46,143.41,7.6730022]